[Event "44th Chess Olympiad Open 2022"]
[Site "Chennai"]
[Date "2022.07.31"]
[Round "3.59"]
[White "Alharthi, Ahmed Mohammed A"]
[Black "Kojima, Shinya"]
[Result "0-1"]
[WhiteElo "1935"]
[BlackElo "2346"]
[Annotator "ChessBase"]
[PlyCount "74"]
[EventDate "2022.??.??"]
[TimeControl "60"]

1. d4 {[%emt 0:00:08]} d5 {[%emt 0:00:07]} 2. Bf4 {[%emt 0:00:09]} Nf6 {
[%emt 0:00:16]} 3. e3 {[%emt 0:00:11]} e6 {[%emt 0:00:37]} 4. c3 {[%emt 0:00:
00]} c5 {[%emt 0:00:41]} 5. Nd2 {[%emt 0:00:18]} Bd6 {[%emt 0:00:49]} 6. Bg3 {
[%emt 0:00:08]} O-O {[%emt 0:01:12]} 7. Ngf3 {[%emt 0:01:21]} Qc7 {[%emt 0:00:
00]} 8. Bd3 {[%emt 0:01:10]} Nbd7 {[%emt 0:00:18]} 9. O-O {[%emt 0:00:37]} Bxg3
{[%emt 0:00:09]} 10. hxg3 {[%emt 0:00:12]} e5 {[%emt 0:00:18]} 11. e4 {[%emt 0:
00:00]} dxe4 {[%emt 0:02:48]} 12. Nxe4 {[%emt 0:02:17]} Nxe4 {[%emt 0:02:08]}
13. Bxe4 {[%emt 0:00:10]} Nf6 {[%emt 0:01:26]} 14. Bc2 {[%emt 0:00:41]} exd4 {
[%emt 0:08:09]} 15. cxd4 {[%emt 0:02:04]} Rd8 {[%emt 0:02:46]} 16. Qc1 {
[%emt 0:09:56]} c4 {[%emt 0:13:59]} 17. Bd3 {[%emt 0:13:45]} Be6 {[%emt 0:00:
00]} 18. b3 {[%emt 0:05:27]} b5 {[%emt 0:06:24]} 19. bxc4 {[%emt 0:06:09]} bxc4
{[%emt 0:00:36]} 20. Qc2 {[%emt 0:01:37]} Qa5 {[%emt 0:03:35]} 21. Be2 {
[%emt 0:05:04]} Rac8 {[%emt 0:01:37]} 22. Rac1 {[%emt 0:05:51]} c3 {[%emt 0:00:
00]} 23. Bd3 {[%emt 0:09:45]} g6 {[%emt 0:05:50]} 24. Ra1 {[%emt 0:08:08]} Rb8
{[%emt 0:05:43]} 25. Qc1 {[%emt 0:01:54]} Kg7 {[%emt 0:05:08]} 26. Bc2 {
[%emt 0:02:13]} Rb2 {[%emt 0:01:29]} 27. Bb3 {[%emt 0:00:54]} Bd5 {[%emt 0:00:
00]} 28. Ne5 {[%emt 0:02:32]} Rc8 {[%emt 0:02:38]} 29. Nd3 {[%emt 0:01:51]} Rd2
{[%emt 0:01:48]} 30. Rd1 {[%emt 0:08:10]} Re8 {[%emt 0:07:03]} 31. Nf4 {
[%emt 0:02:23]} Bxb3 {[%emt 0:02:23]} 32. axb3 {[%emt 0:01:17]} Qb4 {[%emt 0:
00:00]} 33. Nd3 {[%emt 0:01:40]} Qxd4 {[%emt 0:01:33]} 34. Rxd2 {[%emt 0:02:13]
} cxd2 {[%emt 0:00:06]} 35. Qb1 {[%emt 0:00:10]} Rc8 {[%emt 0:02:52]} 36. Ra4 {
[%emt 0:00:38]} Rc1+ {[%emt 0:00:18]} 37. Kh2 {[%emt 0:01:15]} Rxb1 {[%emt 0:
00:00]} 0-1

[Event "44th Chess Olympiad Open 2022"]
[Site "Chennai"]
[Date "2022.07.31"]
[Round "3.60"]
[White "Al-Zendani, Zendan"]
[Black "Amini, Habibullah"]
[Result "0-1"]
[WhiteElo "2284"]
[BlackElo "2035"]
[Annotator "ChessBase"]
[PlyCount "70"]
[EventDate "2022.??.??"]
[TimeControl "60"]

1. e4 {[%emt 0:00:13]} d6 {[%emt 0:00:06]} 2. d4 {[%emt 0:00:07]} Nf6 {[%emt 0:
00:00]} 3. Nc3 {[%emt 0:00:08]} g6 {[%emt 0:00:18]} 4. h3 {[%emt 0:02:27]} Bg7
{[%emt 0:01:23]} 5. Nf3 {[%emt 0:00:14]} O-O {[%emt 0:01:59]} 6. Be3 {[%emt 0:
00:00]} Nc6 {[%emt 0:01:42]} 7. d5 {[%emt 0:03:00]} Ne5 {[%emt 0:04:17]} 8. Be2
{[%emt 0:05:59]} Nxf3+ {[%emt 0:14:43]} 9. Bxf3 {[%emt 0:00:13]} c6 {[%emt 0:
00:00]} 10. O-O {[%emt 0:00:45]} c5 {[%emt 0:02:36]} 11. a4 {[%emt 0:02:15]} b6
{[%emt 0:12:17]} 12. Qd2 {[%emt 0:06:17]} Ba6 {[%emt 0:08:48]} 13. Nb5 {
[%emt 0:03:01]} Nd7 {[%emt 0:08:22]} 14. c3 {[%emt 0:00:45]} c4 {[%emt 0:09:52]
} 15. Be2 {[%emt 0:02:53]} Nc5 {[%emt 0:03:47]} 16. Bxc5 {[%emt 0:11:07]} bxc5
{[%emt 0:00:21]} 17. Bxc4 {[%emt 0:00:07]} Qd7 {[%emt 0:00:54]} 18. Qe2 {
[%emt 0:02:31]} Bc8 {[%emt 0:02:23]} 19. f4 {[%emt 0:01:12]} a6 {[%emt 0:01:39]
} 20. Na3 {[%emt 0:00:07]} Qb7 {[%emt 0:00:19]} 21. e5 {[%emt 0:03:50]} Bd7 {
[%emt 0:00:15]} 22. b3 {[%emt 0:10:17]} f6 {[%emt 0:02:42]} 23. e6 {[%emt 0:00:
00]} Be8 {[%emt 0:00:01]} 24. f5 {[%emt 0:01:52]} gxf5 {[%emt 0:00:03]} 25.
Rxf5 {[%emt 0:01:06]} Bg6 {[%emt 0:00:01]} 26. Raf1 {[%emt 0:00:53]} Kh8 {
[%emt 0:03:32]} 27. Qe3 {[%emt 0:01:18]} Rg8 {[%emt 0:01:13]} 28. Nb1 {[%emt 0:
00:00]} Qb8 {[%emt 0:00:59]} 29. Nd2 {[%emt 0:04:18]} Qf8 {[%emt 0:00:20]} 30.
Ne4 {[%emt 0:00:51]} Bh6 {[%emt 0:01:22]} 31. Qe2 {[%emt 0:00:29]} Bxf5 {
[%emt 0:01:45]} 32. Rxf5 {[%emt 0:00:11]} Qg7 {[%emt 0:00:08]} 33. g4 {[%emt 0:
00:00]} Rab8 {[%emt 0:01:21]} 34. a5 {[%emt 0:03:39]} Bc1 {[%emt 0:01:23]} 35.
Qf3 {[%emt 0:01:47]} Qh6 {[%emt 0:00:45]} 0-1

[Event "44th Chess Olympiad Open 2022"]
[Site "Chennai"]
[Date "2022.07.31"]
[Round "3.60"]
[White "Al Harazy, Khalid"]
[Black "Sulaiman, Ahmad Ashrafi"]
[Result "0-1"]
[WhiteElo "2149"]
[BlackElo "1953"]
[Annotator "NA RC"]
[PlyCount "80"]
[EventDate "2022.??.??"]
[TimeControl "60"]

1. e4 {[%emt 0:00:09]} e6 {[%emt 0:00:06]} 2. d4 {[%emt 0:00:21]} d5 {[%emt 0:
00:00]} 3. exd5 {[%emt 0:00:27]} exd5 {[%emt 0:00:05]} 4. Nf3 {[%emt 0:00:07]}
Bd6 {[%emt 0:03:25]} 5. Bd3 {[%emt 0:00:10]} Nc6 {[%emt 0:00:35]} 6. O-O {
[%emt 0:00:07]} Bg4 {[%emt 0:00:15]} 7. c3 {[%emt 0:00:09]} Nge7 {[%emt 0:00:
00]} 8. Bg5 {[%emt 0:00:56]} f6 {[%emt 0:00:32]} 9. Bh4 {[%emt 0:00:01]} Qd7 {
[%emt 0:00:13]} 10. b4 {[%emt 0:00:05]} O-O-O {[%emt 0:01:26]} 11. a4 {[%emt 0:
00:00]} Kb8 {[%emt 0:00:29]} 12. a5 {[%emt 0:00:05]} Rde8 {[%emt 0:03:04]} 13.
Nbd2 {[%emt 0:02:00]} g5 {[%emt 0:00:51]} 14. Bg3 {[%emt 0:00:01]} h5 {[%emt 0:
00:00]} 15. b5 {[%emt 0:03:54]} Nd8 {[%emt 0:01:38]} 16. c4 {[%emt 0:07:11]}
Bxg3 {[%emt 0:02:59]} 17. fxg3 {[%emt 0:01:05]} dxc4 {[%emt 0:00:57]} 18. Bxc4
{[%emt 0:02:09]} Nd5 {[%emt 0:01:47]} 19. Qb3 {[%emt 0:03:45]} Ne3 {[%emt 0:00:
00]} 20. Rfe1 {[%emt 0:00:09]} Nxc4 {[%emt 0:00:27]} 21. Qxc4 {[%emt 0:00:12]}
h4 {[%emt 0:01:39]} 22. d5 {[%emt 0:07:23]} hxg3 {[%emt 0:01:07]} 23. hxg3 {
[%emt 0:00:05]} Nf7 {[%emt 0:03:44]} 24. b6 {[%emt 0:08:58]} cxb6 {[%emt 0:00:
00]} 25. axb6 {[%emt 0:00:02]} a6 {[%emt 0:00:17]} 26. Rec1 {[%emt 0:07:47]}
Rc8 {[%emt 0:05:38]} 27. Qd4 {[%emt 0:00:14]} Bxf3 {[%emt 0:01:22]} 28. Nxf3 {
[%emt 0:07:18]} Qd6 {[%emt 0:00:29]} 29. g4 {[%emt 0:01:36]} Ne5 {[%emt 0:00:
00]} 30. Nd2 {[%emt 0:06:09]} Rxc1+ {[%emt 0:02:20]} 31. Rxc1 {[%emt 0:00:02]}
Nxg4 {[%emt 0:00:41]} 32. Nf1 {[%emt 0:16:19]} Ne5 {[%emt 0:01:01]} 33. Ne3 {
[%emt 0:02:32]} Nf3+ {[%emt 0:02:30]} 34. gxf3 {[%emt 0:00:17]} Qh2+ {[%emt 0:
00:00]} 35. Kf1 {[%emt 0:00:01]} Qh1+ {[%emt 0:00:17]} 36. Ke2 {[%emt 0:00:32]}
Rh2+ {[%emt 0:00:14]} 37. Kd3 {[%emt 0:00:07]} Qxc1 {[%emt 0:00:00]} 38. Qxf6 {
[%emt 0:00:02]} Qb1+ {[%emt 0:00:38]} 39. Kc4 {[%emt 0:03:35]} Qb5+ {[%emt 0:
00:00]} 40. Kd4 {[%emt 0:00:41]} Qb2+ {[%emt 0:00:09]} 0-1

[Event "44th Chess Olympiad Open 2022"]
[Site "Chennai"]
[Date "2022.07.31"]
[Round "3.60"]
[White "Mirzaad, S.wahabuddin"]
[Black "Al Qudaimi, Basheer"]
[Result "1/2-1/2"]
[WhiteElo "1999"]
[BlackElo "2424"]
[Annotator "RC"]
[PlyCount "86"]
[EventDate "2022.??.??"]
[TimeControl "60"]

1. d4 {[%emt 0:00:14]} Nf6 {[%emt 0:00:10]} 2. Bf4 {[%emt 0:00:17]} c5 {
[%emt 0:03:35]} 3. d5 {[%emt 0:01:53]} Qb6 {[%emt 0:02:13]} 4. Nc3 {[%emt 0:00:
00]} Qxb2 {[%emt 0:00:50]} 5. Bd2 {[%emt 0:00:32]} Qb6 {[%emt 0:00:38]} 6. e4 {
[%emt 0:00:23]} d6 {[%emt 0:00:07]} 7. f4 {[%emt 0:00:49]} e6 {[%emt 0:06:41]}
8. Rb1 {[%emt 0:01:53]} Qc7 {[%emt 0:09:02]} 9. Bb5+ {[%emt 0:01:15]} Nbd7 {
[%emt 0:01:25]} 10. dxe6 {[%emt 0:02:04]} fxe6 {[%emt 0:00:09]} 11. Nf3 {
[%emt 0:01:03]} a6 {[%emt 0:04:27]} 12. Bc4 {[%emt 0:10:44]} Nb6 {[%emt 0:00:
00]} 13. Be2 {[%emt 0:02:30]} d5 {[%emt 0:06:16]} 14. e5 {[%emt 0:03:06]} Ng8 {
[%emt 0:05:17]} 15. O-O {[%emt 0:01:23]} Nh6 {[%emt 0:04:31]} 16. Ng5 {[%emt 0:
00:00]} c4 {[%emt 0:03:55]} 17. Bg4 {[%emt 0:04:16]} Bc5+ {[%emt 0:00:34]} 18.
Kh1 {[%emt 0:00:18]} Nxg4 {[%emt 0:01:12]} 19. Qxg4 {[%emt 0:00:07]} O-O {
[%emt 0:01:54]} 20. Rf3 {[%emt 0:06:34]} h6 {[%emt 0:10:03]} 21. Nxe6 {[%emt 0:
00:00]} Bxe6 {[%emt 0:04:06]} 22. Qxe6+ {[%emt 0:00:16]} Kh8 {[%emt 0:00:08]}
23. Rh3 {[%emt 0:03:03]} Qc6 {[%emt 0:08:08]} 24. Qxc6 {[%emt 0:06:21]} bxc6 {
[%emt 0:00:05]} 25. g4 {[%emt 0:01:52]} Rae8 {[%emt 0:02:47]} 26. Re1 {[%emt 0:
00:00]} Bb4 {[%emt 0:03:25]} 27. f5 {[%emt 0:06:48]} d4 {[%emt 0:01:17]} 28.
Ne4 {[%emt 0:00:35]} Rxe5 {[%emt 0:03:32]} 29. Bxb4 {[%emt 0:03:38]} Rfe8 {
[%emt 0:00:03]} 30. f6 {[%emt 0:01:38]} gxf6 {[%emt 0:02:28]} 31. Rxh6+ {
[%emt 0:01:49]} Kg7 {[%emt 0:00:05]} 32. Rxf6 {[%emt 0:04:33]} Nd5 {[%emt 0:00:
00]} 33. Rxc6 {[%emt 0:05:47]} Nxb4 {[%emt 0:00:02]} 34. Rxc4 {[%emt 0:00:55]}
Nxa2 {[%emt 0:04:49]} 35. Ra1 {[%emt 0:05:10]} Rxe4 {[%emt 0:00:01]} 36. Rxa2 {
[%emt 0:00:16]} Rxg4 {[%emt 0:00:11]} 37. h3 {[%emt 0:03:42]} Re1+ {[%emt 0:00:
00]} 38. Kh2 {[%emt 0:00:07]} Re2+ {[%emt 0:00:30]} 39. Kh1 {[%emt 0:00:11]}
Re1+ {[%emt 0:01:31]} 40. Kh2 {[%emt 0:00:07]} Re2+ {[%emt 0:00:40]} 41. Kh1 {
[%emt 0:30:09]} Rf4 {[%emt 0:32:20]} 42. Kg1 {[%emt 0:02:25]} Re6 {[%emt 0:00:
00]} 43. c3 {[%emt 0:02:40]} Rf3 {[%emt 0:05:33]} 1/2-1/2

[Event "44th Chess Olympiad Open 2022"]
[Site "Chennai"]
[Date "2022.07.31"]
[Round "3.61"]
[White "Leon Archibaldo, Orlando Andres"]
[Black "Wu, Bing-Shen"]
[Result "0-1"]
[WhiteElo "2193"]
[BlackElo "1660"]
[Annotator "RC"]
[PlyCount "149"]
[EventDate "2022.??.??"]
[TimeControl "60"]

1. d4 {[%emt 0:00:07]} Nf6 {[%emt 0:00:28]} 2. Nc3 {[%emt 0:00:11]} g6 {
[%emt 0:00:20]} 3. e4 {[%emt 0:00:10]} d6 {[%emt 0:00:08]} 4. Bf4 {[%emt 0:00:
00]} Bg7 {[%emt 0:00:59]} 5. Qd2 {[%emt 0:00:09]} c6 {[%emt 0:01:10]} 6. Bh6 {
[%emt 0:06:30]} Bxh6 {[%emt 0:04:19]} 7. Qxh6 {[%emt 0:00:04]} Qa5 {[%emt 0:00:
00]} 8. Bd3 {[%emt 0:01:34]} c5 {[%emt 0:08:00]} 9. dxc5 {[%emt 0:19:16]} Qxc5
{[%emt 0:00:33]} 10. h3 {[%emt 0:08:08]} Nc6 {[%emt 0:03:44]} 11. Nf3 {[%emt 0:
00:00]} Be6 {[%emt 0:09:23]} 12. O-O {[%emt 0:02:00]} Rg8 {[%emt 0:05:51]} 13.
Qg5 {[%emt 0:11:01]} Nd4 {[%emt 0:07:49]} 14. Qe3 {[%emt 0:07:24]} Nxf3+ {
[%emt 0:00:46]} 15. Qxf3 {[%emt 0:00:09]} O-O-O {[%emt 0:11:37]} 16. Rfe1 {
[%emt 0:02:25]} g5 {[%emt 0:10:20]} 17. Qe3 {[%emt 0:00:37]} Qxe3 {[%emt 0:00:
00]} 18. Rxe3 {[%emt 0:01:05]} Nd7 {[%emt 0:00:14]} 19. Nb5 {[%emt 0:07:05]}
Kb8 {[%emt 0:02:56]} 20. Nd4 {[%emt 0:03:08]} Ne5 {[%emt 0:00:31]} 21. Nxe6 {
[%emt 0:00:39]} fxe6 {[%emt 0:00:09]} 22. Be2 {[%emt 0:00:16]} Rc8 {[%emt 0:00:
00]} 23. c3 {[%emt 0:01:16]} Kc7 {[%emt 0:03:54]} 24. Rd1 {[%emt 0:01:58]} Kd8
{[%emt 0:03:18]} 25. Rg3 {[%emt 0:02:26]} Kd7 {[%emt 0:09:18]} 26. Bb5+ {
[%emt 0:01:38]} Kc7 {[%emt 0:00:37]} 27. Ba4 {[%emt 0:00:45]} h5 {[%emt 0:00:
00]} 28. Bb3 {[%emt 0:01:27]} Rg6 {[%emt 0:00:27]} 29. f4 {[%emt 0:09:59]} gxf4
{[%emt 0:00:10]} 30. Rxg6 {[%emt 0:00:02]} Nxg6 {[%emt 0:00:11]} 31. Bxe6 {
[%emt 0:00:05]} Rf8 {[%emt 0:00:10]} 32. Kf2 {[%emt 0:03:24]} Rf6 {[%emt 0:00:
00]} 33. Bd5 {[%emt 0:00:51]} Ne5 {[%emt 0:01:17]} 34. a4 {[%emt 0:05:01]} h4 {
[%emt 0:00:47]} 35. a5 {[%emt 0:00:13]} f3 {[%emt 0:01:03]} 36. Rd4 {[%emt 0:
00:00]} fxg2+ {[%emt 0:02:34]} 37. Kxg2 {[%emt 0:00:08]} Rg6+ {[%emt 0:00:15]}
38. Kf1 {[%emt 0:00:28]} e6 {[%emt 0:01:35]} 39. Bb3 {[%emt 0:00:40]} Nf3 {
[%emt 0:00:34]} 40. Rd3 {[%emt 0:00:39]} Ne5 {[%emt 0:00:28]} 41. Rd2 {[%emt 0:
00:00]} Kd7 {[%emt 0:02:45]} 42. Rf2 {[%emt 0:00:00]} Ke7 {[%emt 0:02:47]} 43.
Rf4 {[%emt 0:00:00]} Rf6 {[%emt 0:11:55]} 44. Rxf6 {[%emt 0:00:00]} Kxf6 {
[%emt 0:00:03]} 45. Ke2 {[%emt 0:00:00]} Nf7 {[%emt 0:11:34]} 46. Kf3 {[%emt 0:
00:00]} Ng5+ {[%emt 0:00:06]} 47. Kg4 {[%emt 0:00:00]} Nxe4 {[%emt 0:00:07]}
48. Kxh4 {[%emt 0:00:00]} Kf5 {[%emt 0:03:32]} 49. Bc2 {[%emt 0:00:00]} e5 {
[%emt 0:00:58]} 50. Bxe4+ {[%emt 0:00:00]} Kxe4 {[%emt 0:00:05]} 51. Kg4 {
[%emt 0:00:00]} Kd3 {[%emt 0:00:10]} 52. h4 {[%emt 0:00:00]} e4 {[%emt 0:00:05]
} 53. h5 {[%emt 0:00:00]} e3 {[%emt 0:00:06]} 54. h6 {[%emt 0:00:00]} e2 {
[%emt 0:00:09]} 55. h7 {[%emt 0:00:00]} e1=Q {[%emt 0:00:13]} 56. h8=Q {
[%emt 0:00:00]} Qe4+ {[%emt 0:01:03]} 57. Kg3 {[%emt 0:00:00]} Qe5+ {[%emt 0:
00:00]} 58. Qxe5 {[%emt 0:00:00]} dxe5 {[%emt 0:00:03]} 59. Kf2 {[%emt 0:00:00]
} a6 {[%emt 0:01:17]} 60. Ke1 {[%emt 0:00:00]} e4 {[%emt 0:00:26]} 61. Kd1 {
[%emt 0:00:00]} e3 {[%emt 0:00:18]} 62. Ke1 {[%emt 0:00:00]} e2 {[%emt 0:01:01]
} 63. c4 {[%emt 0:00:00]} Kxc4 {[%emt 0:00:26]} 64. Kxe2 {[%emt 0:00:00]} Kb3 {
[%emt 0:00:27]} 65. Kd3 {[%emt 0:00:00]} Kxb2 {[%emt 0:00:20]} 66. Kd4 {
[%emt 0:00:51]} Kb3 {[%emt 0:00:25]} 67. Kc5 {[%emt 0:00:13]} Ka4 {[%emt 0:00:
00]} 68. Kb6 {[%emt 0:00:06]} Kb4 {[%emt 0:00:05]} 69. Kxb7 {[%emt 0:00:06]}
Kxa5 {[%emt 0:00:05]} 70. Kc6 {[%emt 0:00:10]} Kb4 {[%emt 0:00:06]} 71. Kd5 {
[%emt 0:00:03]} a5 {[%emt 0:00:12]} 72. Kd4 {[%emt 0:00:07]} Kb3 {[%emt 0:00:
00]} 73. Kd3 {[%emt 0:00:01]} a4 {[%emt 0:00:35]} 74. Kd2 {[%emt 0:00:07]} a3 {
[%emt 0:00:25]} 75. Kd3 {[%emt 0:00:37]} 0-1

[Event "44th Chess Olympiad Open 2022"]
[Site "Chennai"]
[Date "2022.07.31"]
[Round "3.61"]
[White "Ramos Espinoza, Efren Andres"]
[Black "Liu, Yeh Yang"]
[Result "1/2-1/2"]
[WhiteElo "2158"]
[BlackElo "1994"]
[Annotator "RC"]
[PlyCount "78"]
[EventDate "2022.??.??"]
[TimeControl "60"]

1. c4 {[%emt 0:00:15]} Nf6 {[%emt 0:00:08]} 2. Nc3 {[%emt 0:00:13]} c5 {
[%emt 0:00:06]} 3. g3 {[%emt 0:00:13]} g6 {[%emt 0:00:30]} 4. Bg2 {[%emt 0:00:
00]} Bg7 {[%emt 0:00:02]} 5. Nf3 {[%emt 0:00:24]} O-O {[%emt 0:00:05]} 6. O-O {
[%emt 0:00:59]} Nc6 {[%emt 0:00:31]} 7. d4 {[%emt 0:00:23]} cxd4 {[%emt 0:00:
00]} 8. Nxd4 {[%emt 0:00:10]} Nxd4 {[%emt 0:01:44]} 9. Qxd4 {[%emt 0:00:07]} d6
{[%emt 0:00:09]} 10. Qd2 {[%emt 0:03:54]} Rb8 {[%emt 0:00:54]} 11. b3 {[%emt 0:
00:00]} a6 {[%emt 0:00:25]} 12. Bb2 {[%emt 0:02:46]} b5 {[%emt 0:00:31]} 13.
cxb5 {[%emt 0:00:35]} axb5 {[%emt 0:00:06]} 14. Nd5 {[%emt 0:04:02]} Nxd5 {
[%emt 0:00:31]} 15. Bxg7 {[%emt 0:00:14]} Kxg7 {[%emt 0:00:03]} 16. Qxd5 {
[%emt 0:00:32]} Qb6 {[%emt 0:01:16]} 17. Rfc1 {[%emt 0:08:55]} Bb7 {[%emt 0:00:
00]} 18. Qd3 {[%emt 0:04:23]} b4 {[%emt 0:00:11]} 19. Rc2 {[%emt 0:00:34]} Rfc8
{[%emt 0:04:42]} 20. Rac1 {[%emt 0:00:39]} Rxc2 {[%emt 0:00:05]} 21. Rxc2 {
[%emt 0:00:17]} Bxg2 {[%emt 0:00:40]} 22. Kxg2 {[%emt 0:00:07]} Ra8 {[%emt 0:
00:00]} 23. h4 {[%emt 0:02:58]} Ra5 {[%emt 0:00:48]} 24. f3 {[%emt 0:12:25]} e6
{[%emt 0:00:50]} 25. Qd2 {[%emt 0:13:36]} d5 {[%emt 0:12:52]} 26. h5 {[%emt 0:
00:00]} f6 {[%emt 0:08:13]} 27. h6+ {[%emt 0:07:30]} Kf7 {[%emt 0:00:02]} 28.
Rc8 {[%emt 0:02:01]} g5 {[%emt 0:11:18]} 29. Qc2 {[%emt 0:00:50]} f5 {[%emt 0:
00:00]} 30. Rc7+ {[%emt 0:00:39]} Kg6 {[%emt 0:00:06]} 31. Rg7+ {[%emt 0:04:55]
} Kxh6 {[%emt 0:02:47]} 32. Rg8 {[%emt 0:00:09]} Ra7 {[%emt 0:00:22]} 33. Qc8 {
[%emt 0:09:39]} Qe3 {[%emt 0:06:59]} 34. Qf8+ {[%emt 0:00:52]} Kh5 {[%emt 0:00:
00]} 35. Kh3 {[%emt 0:06:01]} Qxe2 {[%emt 0:00:20]} 36. Qe8+ {[%emt 0:05:49]}
Kh6 {[%emt 0:00:02]} 37. Qf8+ {[%emt 0:00:52]} Kh5 {[%emt 0:00:06]} 38. Qe8+ {
[%emt 0:00:52]} Kh6 {[%emt 0:00:05]} 39. Qf8+ {[%emt 0:00:04]} Kh5 {[%emt 0:00:
00]} 1/2-1/2

[Event "44th Chess Olympiad Open 2022"]
[Site "Chennai"]
[Date "2022.07.31"]
[Round "3.61"]
[White "Hsu, Hsuan-Ming"]
[Black "Delgado Rosas, Alex Antonio"]
[Result "1/2-1/2"]
[WhiteElo "1900"]
[BlackElo "2149"]
[Annotator "RC"]
[PlyCount "103"]
[EventDate "2022.??.??"]
[TimeControl "60"]

1. e4 {[%emt 0:00:06]} c5 {[%emt 0:00:16]} 2. c3 {[%emt 0:00:10]} Nf6 {[%emt 0:
00:00]} 3. e5 {[%emt 0:00:06]} Nd5 {[%emt 0:00:04]} 4. d4 {[%emt 0:00:06]} cxd4
{[%emt 0:00:20]} 5. Nf3 {[%emt 0:00:12]} Nc6 {[%emt 0:00:10]} 6. Bc4 {[%emt 0:
00:00]} Nb6 {[%emt 0:00:19]} 7. Bb3 {[%emt 0:00:26]} d5 {[%emt 0:00:25]} 8.
exd6 {[%emt 0:00:00]} Qxd6 {[%emt 0:00:39]} 9. O-O {[%emt 0:00:59]} Be6 {
[%emt 0:14:45]} 10. Na3 {[%emt 0:01:37]} a6 {[%emt 0:26:12]} 11. Ng5 {[%emt 0:
00:00]} Bd5 {[%emt 0:00:24]} 12. c4 {[%emt 0:01:00]} h6 {[%emt 0:00:08]} 13.
Nh3 {[%emt 0:11:59]} Be4 {[%emt 0:05:23]} 14. Re1 {[%emt 0:05:06]} Bh7 {
[%emt 0:06:03]} 15. Nf4 {[%emt 0:09:35]} e5 {[%emt 0:20:12]} 16. Nd5 {[%emt 0:
00:00]} Qd8 {[%emt 0:00:38]} 17. Bf4 {[%emt 0:03:47]} Bxa3 {[%emt 0:02:48]} 18.
Bxe5 {[%emt 0:03:17]} Nxe5 {[%emt 0:10:24]} 19. Rxe5+ {[%emt 0:00:52]} Kf8 {
[%emt 0:00:15]} 20. bxa3 {[%emt 0:00:31]} d3 {[%emt 0:02:34]} 21. Qd2 {[%emt 0:
00:00]} Nxd5 {[%emt 0:02:22]} 22. cxd5 {[%emt 0:00:26]} Qf6 {[%emt 0:02:21]}
23. Rae1 {[%emt 0:04:25]} g5 {[%emt 0:01:04]} 24. Bc4 {[%emt 0:05:17]} Rc8 {
[%emt 0:00:51]} 25. Bxd3 {[%emt 0:01:42]} Bxd3 {[%emt 0:01:21]} 26. Qxd3 {
[%emt 0:00:08]} Qxe5 {[%emt 0:00:48]} 27. Rxe5 {[%emt 0:00:13]} Rc1+ {[%emt 0:
00:00]} 28. Qf1 {[%emt 0:00:56]} Rxf1+ {[%emt 0:00:02]} 29. Kxf1 {[%emt 0:00:
00]} Kg7 {[%emt 0:01:26]} 30. Ke2 {[%emt 0:05:25]} Kf6 {[%emt 0:00:31]} 31. f4
{[%emt 0:02:46]} gxf4 {[%emt 0:00:25]} 32. Re4 {[%emt 0:00:07]} Kg5 {[%emt 0:
00:00]} 33. d6 {[%emt 0:04:16]} Rd8 {[%emt 0:00:33]} 34. Rd4 {[%emt 0:00:08]}
Kf5 {[%emt 0:00:24]} 35. Kf3 {[%emt 0:00:15]} Ke5 {[%emt 0:00:43]} 36. Rd2 {
[%emt 0:01:51]} Rxd6 {[%emt 0:00:59]} 37. Rxd6 {[%emt 0:00:01]} Kxd6 {[%emt 0:
00:00]} 38. Kxf4 {[%emt 0:00:08]} Ke6 {[%emt 0:00:11]} 39. g4 {[%emt 0:01:41]}
f6 {[%emt 0:01:18]} 40. a4 {[%emt 0:00:09]} b6 {[%emt 0:00:21]} 41. Ke4 {
[%emt 0:30:56]} Kf7 {[%emt 0:31:26]} 42. Kf5 {[%emt 0:00:00]} a5 {[%emt 0:00:
00]} 43. h3 {[%emt 0:00:00]} Kg7 {[%emt 0:00:00]} 44. a3 {[%emt 0:00:00]} Kf7 {
[%emt 0:00:00]} 45. Ke4 {[%emt 0:00:00]} Kg6 {[%emt 0:00:00]} 46. Kd5 {[%emt 0:
00:00]} h5 {[%emt 0:00:00]} 47. Kc6 {[%emt 0:01:15]} hxg4 {[%emt 0:00:00]} 48.
hxg4 {[%emt 0:00:02]} Kg5 {[%emt 0:00:00]} 49. Kxb6 {[%emt 0:00:05]} Kxg4 {
[%emt 0:00:00]} 50. Kxa5 {[%emt 0:00:05]} f5 {[%emt 0:00:00]} 51. Kb4 {[%emt 0:
00:00]} f4 {[%emt 0:00:00]} 52. a5 {[%emt 0:00:02]} 1/2-1/2

[Event "44th Chess Olympiad Open 2022"]
[Site "Chennai"]
[Date "2022.07.31"]
[Round "3.61"]
[White "Yan, Austin K"]
[Black "Sanchez Alvarez, Roberto Carlos"]
[Result "1-0"]
[WhiteElo "1568"]
[BlackElo "2431"]
[Annotator "ChessBase"]
[PlyCount "67"]
[EventDate "2022.??.??"]
[TimeControl "60"]

1. e4 {[%emt 0:00:11]} c5 {[%emt 0:00:12]} 2. Nf3 {[%emt 0:00:07]} d6 {[%emt 0:
00:00]} 3. d4 {[%emt 0:00:07]} cxd4 {[%emt 0:00:09]} 4. Nxd4 {[%emt 0:00:06]}
Nf6 {[%emt 0:00:07]} 5. Nc3 {[%emt 0:00:04]} a6 {[%emt 0:00:12]} 6. f3 {
[%emt 0:00:26]} e6 {[%emt 0:07:09]} 7. Be3 {[%emt 0:00:38]} b5 {[%emt 0:00:27]}
8. Qd2 {[%emt 0:01:17]} Nbd7 {[%emt 0:00:42]} 9. g4 {[%emt 0:04:05]} h6 {
[%emt 0:02:24]} 10. O-O-O {[%emt 0:14:26]} Bb7 {[%emt 0:06:30]} 11. a3 {
[%emt 0:17:39]} Rc8 {[%emt 0:21:12]} 12. Be2 {[%emt 0:05:02]} Nb6 {[%emt 0:00:
00]} 13. h4 {[%emt 0:04:09]} Nfd7 {[%emt 0:00:25]} 14. Nb3 {[%emt 0:26:31]} Nc4
{[%emt 0:29:10]} 15. Bxc4 {[%emt 0:00:47]} Rxc4 {[%emt 0:00:02]} 16. Bf4 {
[%emt 0:01:36]} e5 {[%emt 0:01:54]} 17. Be3 {[%emt 0:00:09]} Qc7 {[%emt 0:00:
00]} 18. Kb1 {[%emt 0:01:18]} Be7 {[%emt 0:02:00]} 19. g5 {[%emt 0:04:51]} hxg5
{[%emt 0:04:01]} 20. hxg5 {[%emt 0:01:27]} Rxh1 {[%emt 0:00:11]} 21. Rxh1 {
[%emt 0:00:01]} g6 {[%emt 0:01:26]} 22. Nd5 {[%emt 0:06:58]} Bxd5 {[%emt 0:00:
00]} 23. exd5 {[%emt 0:00:36]} Ra4 {[%emt 0:05:13]} 24. f4 {[%emt 0:01:58]} b4
{[%emt 0:01:06]} 25. Rh8+ {[%emt 0:02:04]} Bf8 {[%emt 0:00:41]} 26. axb4 {
[%emt 0:01:00]} Qc4 {[%emt 0:01:01]} 27. fxe5 {[%emt 0:01:14]} Nxe5 {[%emt 0:
00:00]} 28. Bd4 {[%emt 0:01:27]} Qf1+ {[%emt 0:01:57]} 29. Nc1 {[%emt 0:00:05]}
Nc4 {[%emt 0:00:52]} 30. Qe2+ {[%emt 0:01:13]} Kd7 {[%emt 0:01:51]} 31. b3 {
[%emt 0:00:49]} Ra1+ {[%emt 0:00:30]} 32. Bxa1 {[%emt 0:03:08]} Na3+ {[%emt 0:
00:00]} 33. Ka2 {[%emt 0:00:09]} Qxc1 {[%emt 0:00:08]} 34. Bb2 {[%emt 0:00:28]}
1-0